bitfinex/quotes_BTCUSD_20240611
["timestamp","ask_amount","ask_price","bid_price","bid_amount"]
[1718077425160,0.014,68345.0,68344.0,1.15664785]
[1718077425400,0.4708,68354.0,68353.0,0.28898441]
[1718077425600,0.4708,68354.0,68353.0,0.90684198]
[1718077425817,0.4708,68354.0,68353.0,0.97702471]
[1718077426275,0.4708,68354.0,68353.0,0.86443188]
[1718077428165,0.00086,68361.0,68359.0,0.02]
[1718077428370,0.14431993,68360.0,68359.0,0.58378541]
[1718077429546,0.14431993,68360.0,68359.0,0.56378541]
[1718077430883,0.14931993,68360.0,68359.0,0.56378541]
[1718077431070,0.14931993,68360.0,68359.0,0.73007141]
[1718077431524,0.15531993,68360.0,68359.0,0.73007141]
[1718077432741,0.011,68360.0,68359.0,0.73007141]
[1718077433611,0.011,68360.0,68359.0,1.39480437]
[1718077434232,0.011,68360.0,68359.0,1.32264441]
[1718077434432,0.005,68360.0,68359.0,1.32264441]
[1718077434636,0.00086,68361.0,68360.0,0.48896941]
[1718077434842,0.00086,68361.0,68360.0,0.93550744]
[1718077435113,0.00086,68361.0,68360.0,1.22807544]
[1718077435316,0.00086,68361.0,68360.0,1.2171577]
[1718077439073,0.00086,68361.0,68360.0,1.4171577]
[1718077440099,0.00086,68361.0,68360.0,1.40283741]
[1718077440918,0.00086,68361.0,68360.0,0.84036941]
[1718077441169,0.00086,68361.0,68358.0,0.2]
[1718077441170,0.14517993,68361.0,68358.0,0.10868541]
[1718077441359,0.14517993,68361.0,68343.0,0.009405]
[1718077441360,0.58,68356.0,68343.0,0.009405]
[1718077441564,0.58,68356.0,68352.0,0.10868541]
[1718077441565,0.023,68355.0,68352.0,0.10868541]
[1718077441789,0.023,68355.0,68354.0,0.10868541]
[1718077442075,0.5,68355.0,68354.0,0.10868541]
[1718077442767,0.2981,68360.0,68359.0,0.10868541]
[1718077442978,0.15036,68361.0,68360.0,0.10868541]
[1718077443189,0.18736,68361.0,68360.0,0.10868541]
[1718077443622,0.33167993,68361.0,68360.0,0.10868541]
[1718077443874,0.31767993,68361.0,68360.0,0.10868541]
[1718077444525,0.33067993,68361.0,68360.0,0.10868541]
[1718077445926,0.34467993,68361.0,68360.0,0.10868541]
[1718077448482,0.34273882,68361.0,68360.0,0.10868541]
[1718077448913,0.32873882,68361.0,68360.0,0.10868541]
[1718077449434,0.80053882,68361.0,68348.0,0.10868541]
[1718077449653,0.80053882,68361.0,68344.0,0.0008699]
[1718077449654,0.526316,68345.0,68344.0,0.0008699]
[1718077449860,0.84171897,68345.0,68344.0,0.0008699]
[1718077450072,0.66683459,68343.0,68323.0,0.10868541]
[1718077450276,0.52051459,68342.0,68322.0,0.10868541]
[1718077450446,1.2609946,68342.0,68341.0,0.00206075]
[1718077450643,1.2839946,68342.0,68341.0,0.00206075]
[1718077451472,1.4254946,68342.0,68341.0,0.00206075]
[1718077452096,1.33418001,68342.0,68341.0,0.00206075]
[1718077452345,1.4254946,68342.0,68341.0,0.00206075]
[1718077452549,1.37780528,68342.0,68341.0,0.00206075]
[1718077452668,1.39180528,68342.0,68341.0,0.00206075]
[1718077452873,1.46911987,68342.0,68341.0,0.00206075]
[1718077453201,1.39180528,68342.0,68341.0,0.00206075]
[1718077453404,1.4534946,68342.0,68341.0,0.00206075]
[1718077453616,1.34818001,68342.0,68341.0,0.00206075]
[1718077453848,1.33418001,68342.0,68341.0,0.00206075]
[1718077454051,1.43985447,68342.0,68341.0,0.00206075]
[1718077454275,1.38475734,68342.0,68341.0,0.00206075]
[1718077454452,1.29344275,68342.0,68341.0,0.00206075]
[1718077454665,1.29344271,68342.0,68341.0,0.00206075]
[1718077455531,1.54804271,68342.0,68341.0,0.00206075]
[1718077455865,1.6393573,68342.0,68341.0,0.00206075]
[1718077456220,1.54804271,68342.0,68341.0,0.00206075]
[1718077456503,1.52004271,68342.0,68341.0,0.00206075]
[1718077456722,1.6113573,68342.0,68341.0,0.00206075]
[1718077456932,1.7856793,68342.0,68341.0,0.00206075]
[1718077457141,1.7716793,68342.0,68341.0,0.00206075]
[1718077457350,1.7576793,68342.0,68341.0,0.00206075]
[1718077457553,1.7716793,68342.0,68341.0,0.00206075]
[1718077458105,1.5970793,68342.0,68341.0,0.00206075]
[1718077458310,1.7716793,68342.0,68341.0,0.00206075]
[1718077458672,1.7856793,68342.0,68341.0,0.00206075]
[1718077459312,1.13765659,68333.0,68317.0,0.009438]
[1718077459520,2.30543539,68333.0,68317.0,0.009438]
[1718077459721,2.74991402,68333.0,68317.0,0.009438]
[1718077460100,2.74992646,68333.0,68317.0,0.009438]
[1718077461101,2.76394161,68333.0,68317.0,0.009438]
[1718077461309,3.21052441,68333.0,68317.0,0.009438]
[1718077461908,3.22452441,68333.0,68317.0,0.009438]
[1718077462110,3.23852441,68333.0,68317.0,0.009438]
[1718077462542,3.2245263,68333.0,68317.0,0.009438]
[1718077462956,3.2385263,68333.0,68317.0,0.009438]
[1718077463155,3.2105263,68333.0,68317.0,0.009438]
[1718077463532,3.2245263,68333.0,68317.0,0.009438]
[1718077463939,3.13321171,68333.0,68317.0,0.009438]
[1718077464149,2.61446775,68333.0,68317.0,0.009438]
[1718077464354,2.70578234,68333.0,68317.0,0.009438]
[1718077467134,2.59446775,68333.0,68317.0,0.009438]
[1718077467330,2.70578234,68333.0,68317.0,0.009438]
[1718077467674,2.72294352,68333.0,68317.0,0.009438]
[1718077469242,2.63162893,68333.0,68317.0,0.009438]
[1718077469671,2.72294352,68333.0,68317.0,0.009438]
[1718077473998,2.63162893,68333.0,68319.0,0.2962]
[1718077474147,2.72294352,68333.0,68319.0,0.2962]
[1718077474367,2.79209039,68333.0,68319.0,0.2962]
[1718077474859,2.7007758,68333.0,68319.0,0.2962]
[1718077475060,2.63162893,68333.0,68319.0,0.40488541]
[1718077475267,2.63162893,68333.0,68319.0,0.2962]
[1718077475268,2.70075972,68333.0,68319.0,0.2962]
[1718077475522,2.79207431,68333.0,68319.0,0.2962]
[1718077478647,2.70075972,68333.0,68323.0,0.10868541]
[1718077478844,2.89279068,68333.0,68323.0,0.10868541]
[1718077479468,3.34819998,68333.0,68323.0,0.10868541]
[1718077480420,3.37109807,68333.0,68323.0,0.10868541]
[1718077480916,3.19649807,68333.0,68323.0,0.10868541]
[1718077481032,3.26649807,68333.0,68323.0,0.10868541]
[1718077481439,3.35781266,68333.0,68323.0,0.10868541]
[1718077482099,2.11071407,68333.0,68327.0,0.11812341]
[1718077482313,2.03071407,68333.0,68332.0,0.214505]
[1718077482523,1.83868311,68333.0,68332.0,0.500205]
[1718077482729,1.90868311,68333.0,68332.0,0.500205]
[1718077482940,1.45327381,68333.0,68332.0,0.500205]
[1718077483136,1.90868311,68333.0,68332.0,0.500205]
[1718077483340,1.43927381,68333.0,68332.0,0.500205]
[1718077483547,1.89468311,68333.0,68332.0,0.500205]
[1718077483755,1.93168311,68333.0,68332.0,0.500205]
[1718077483956,1.91768311,68333.0,68332.0,0.500205]
[1718077484847,1.39227381,68333.0,68332.0,0.500205]
[1718077485081,1.40627381,68333.0,68332.0,0.500205]
[1718077485635,1.39227381,68333.0,68332.0,0.500205]
[1718077486020,1.40627381,68333.0,68332.0,0.500205]
[1718077486402,1.33714302,68333.0,68332.0,0.500205]
[1718077486609,1.40642336,68333.0,68332.0,0.500205]
[1718077491083,1.42642336,68333.0,68332.0,0.214505]
[1718077491250,1.40642336,68333.0,68332.0,0.214505]
[1718077492739,1.42642336,68333.0,68332.0,0.214505]
[1718077493556,1.40642336,68333.0,68332.0,0.214505]
[1718077493756,1.40642336,68333.0,68332.0,0.067405]
[1718077494150,1.42642336,68333.0,68332.0,0.067405]
[1718077494662,1.47180795,68333.0,68332.0,0.067405]
[1718077495010,1.49180795,68333.0,68332.0,0.067405]
[1718077495215,1.42642336,68333.0,68332.0,0.067405]
[1718077495416,1.75067493,68333.0,68332.0,0.067405]
[1718077495829,1.73067493,68333.0,68332.0,0.067405]
[1718077496729,1.52958683,68333.0,68332.0,0.067405]
[1718077496930,1.73064063,68333.0,68332.0,0.067405]
[1718077498114,1.86021649,68333.0,68332.0,0.067405]
[1718077498319,1.73064063,68333.0,68332.0,0.067405]
[1718077498604,1.84021624,68333.0,68332.0,0.067405]
[1718077499350,1.86021624,68333.0,68332.0,0.067405]
[1718077499582,1.83731815,68333.0,68332.0,0.067405]
[1718077500363,1.81731815,68333.0,68332.0,0.067405]
[1718077502587,1.70774254,68333.0,68332.0,0.067405]
[1718077503471,1.83731815,68333.0,68332.0,0.067405]
[1718077504298,1.76805007,68333.0,68332.0,0.067405]
[1718077504499,1.83728811,68333.0,68332.0,0.067405]
[1718077504734,1.81728811,68333.0,68332.0,0.067405]
[1718077504943,1.88718811,68333.0,68332.0,0.067405]
[1718077505159,1.90718811,68333.0,68332.0,0.067405]
[1718077505356,1.81728811,68333.0,68332.0,0.067405]
[1718077505583,1.7776125,68333.0,68332.0,0.067405]
[1718077505788,1.86527174,68333.0,68332.0,0.067405]
[1718077507332,1.86527174,68333.0,68332.0,0.17609041]
[1718077508493,0.32410565,68333.0,68332.0,0.68069041]
[1718077508669,0.17978572,68333.0,68332.0,0.70069041]
[1718077508977,0.17978572,68333.0,68332.0,1.14703441]
[1718077508978,0.028,68333.0,68332.0,1.14703441]
[1718077509595,0.00086,68341.0,68340.0,0.56338541]
[1718077509843,0.00086,68341.0,68340.0,1.0939327]
[1718077510092,0.00086,68341.0,68340.0,0.8240327]
[1718077510311,0.00086,68341.0,68340.0,0.8040327]
[1718077510548,0.00086,68341.0,68340.0,0.8939327]
[1718077511007,0.14517993,68341.0,68340.0,0.6577057]
[1718077511464,0.14517993,68341.0,68340.0,0.6597057]
[1718077511465,0.14617993,68341.0,68340.0,0.6597057]
[1718077511720,0.14717993,68341.0,68340.0,0.5617057]
[1718077511945,0.14717993,68341.0,68340.0,0.45102029]
[1718077511946,0.16917993,68341.0,68340.0,0.45102029]
[1718077512446,0.16917993,68341.0,68340.0,0.01632029]
[1718077512693,0.16917993,68341.0,68340.0,0.002]
[1718077513118,0.16817993,68341.0,68338.0,0.10868541]
[1718077513379,0.14431993,68339.0,68336.0,0.10868541]
[1718077514012,0.14431993,68339.0,68335.0,0.2879]
[1718077514013,0.023,68338.0,68337.0,0.10868541]
[1718077514253,0.16731993,68338.0,68337.0,0.10868541]
[1718077516459,0.16831993,68338.0,68337.0,0.10868541]
[1718077517572,0.17131993,68338.0,68337.0,0.10868541]
[1718077519053,0.67131993,68338.0,68337.0,0.10868541]
[1718077520097,0.67131993,68338.0,68336.0,0.10868541]
[1718077520307,0.14431993,68337.0,68336.0,0.10868541]
[1718077520525,0.16731993,68337.0,68336.0,0.10868541]
[1718077522031,0.16731993,68337.0,68332.0,0.067405]
[1718077522241,0.14431993,68333.0,68332.0,0.067405]
[1718077522719,0.16731993,68333.0,68332.0,0.067405]
[1718077523788,0.17731993,68333.0,68332.0,0.068405]
[1718077523970,0.17731993,68333.0,68332.0,0.069405]
[1718077524171,0.17731993,68333.0,68332.0,0.17809041]
[1718077524436,0.17731993,68333.0,68332.0,0.17709041]
[1718077525285,0.18831993,68333.0,68332.0,0.17809041]
[1718077525947,0.16531993,68333.0,68332.0,0.64019041]
[1718077526447,0.16531993,68333.0,68332.0,0.66019041]
[1718077526870,0.16531993,68333.0,68332.0,0.80653441]
[1718077529391,0.16531993,68333.0,68332.0,0.90653441]
[1718077529604,0.021,68333.0,68332.0,0.90653441]
[1718077530296,0.00086,68341.0,68340.0,0.59078541]
[1718077530548,0.14517993,68341.0,68340.0,0.59078541]
[1718077531326,0.00086,68341.0,68340.0,0.73711241]
[1718077531603,0.00086,68341.0,68340.0,1.03711241]
[1718077532492,0.00086,68341.0,68340.0,0.83711241]
[1718077533172,0.01186,68341.0,68340.0,0.83811241]
[1718077533836,0.00086,68341.0,68340.0,0.83711241]
[1718077534281,0.00186,68341.0,68340.0,0.84311241]
[1718077534483,0.01186,68341.0,68340.0,0.84411241]
[1718077534703,0.00186,68341.0,68340.0,0.84311241]
[1718077535127,0.00286,68341.0,68340.0,0.85111241]
[1718077535596,0.14717993,68341.0,68340.0,0.83111241]
[1718077535823,0.14717993,68341.0,68340.0,0.85111241]
[1718077536650,0.14717993,68341.0,68340.0,0.83111241]
[1718077536892,0.14717993,68341.0,68340.0,0.85111241]
[1718077537101,0.14717993,68341.0,68340.0,0.83111241]
[1718077537525,0.14717993,68341.0,68340.0,0.85111241]
[1718077539302,0.14717993,68341.0,68340.0,0.83111241]
[1718077539496,0.14717993,68341.0,68340.0,0.85111241]
[1718077551737,0.00286,68341.0,68340.0,0.85111241]
[1718077553265,0.00286,68341.0,68340.0,1.05111241]
[1718077555827,0.00286,68341.0,68340.0,1.06902158]
[1718077558852,0.00286,68341.0,68340.0,1.22292158]
[1718077559067,0.00286,68341.0,68340.0,1.51557558]
[1718077559289,0.00286,68341.0,68340.0,1.61557558]
[1718077559497,0.00286,68341.0,68340.0,1.79027558]
[1718077559942,0.00286,68341.0,68340.0,1.69027558]
[1718077560364,0.00286,68341.0,68340.0,1.79027558]
[1718077564977,0.00286,68341.0,68340.0,1.68547558]
[1718077565432,0.00286,68341.0,68340.0,1.61557558]
[1718077565663,0.00286,68341.0,68340.0,1.41557558]
[1718077566123,0.00286,68341.0,68340.0,1.48547558]
[1718077566359,0.00286,68341.0,68340.0,1.68547558]
[1718077567014,0.00286,68341.0,68340.0,1.48547558]
[1718077569691,0.00286,68341.0,68340.0,1.78068597]
[1718077569921,0.00286,68341.0,68340.0,0.75603197]
[1718077570160,0.00286,68341.0,68340.0,0.50213197]
[1718077570897,0.00286,68341.0,68340.0,0.40692158]
[1718077573202,0.00286,68341.0,68340.0,0.38692158]
[1718077573412,0.00286,68341.0,68340.0,0.40692158]
[1718077575421,0.00286,68341.0,68340.0,0.38692158]
[1718077580480,0.00286,68341.0,68340.0,0.40692158]
[1718077580832,0.00286,68341.0,68340.0,0.38692158]
[1718077581046,0.00286,68341.0,68340.0,0.40692158]
[1718077590973,0.00286,68341.0,68340.0,0.47682158]
[1718077594616,0.00286,68341.0,68340.0,0.91992158]
[1718077594823,0.00286,68341.0,68340.0,1.36905622]
[1718077595500,0.00286,68341.0,68340.0,1.41266699]
[1718077595731,0.00286,68341.0,68340.0,1.46905622]
[1718077597271,0.00286,68341.0,68340.0,1.76171022]
[1718077599812,0.00286,68341.0,68340.0,1.66171022]
[1718077600220,0.00286,68341.0,68340.0,1.72708684]
[1718077602136,0.04981622,68354.0,68353.0,0.27498441]
[1718077602297,0.04981622,68354.0,68353.0,1.43363734]
[1718077602494,0.452,68356.0,68355.0,0.166295]
[1718077602664,0.59631993,68356.0,68355.0,0.45021505]
[1718077602908,0.59631993,68356.0,68355.0,0.35498041]
[1718077604623,0.59631993,68356.0,68355.0,0.36198041]
[1718077604829,0.59631993,68356.0,68355.0,0.35498041]
[1718077605156,0.59631993,68356.0,68355.0,0.36798041]
[1718077605600,0.59631993,68356.0,68355.0,0.36198041]
[1718077607053,0.59631993,68356.0,68355.0,0.35498041]
[1718077607262,0.59631993,68356.0,68355.0,0.35798041]
[1718077607462,0.59631993,68356.0,68355.0,0.36298041]
[1718077614799,0.59631993,68356.0,68355.0,0.38298041]
[1718077615528,0.59631993,68356.0,68355.0,0.36298041]
[1718077617536,0.59631993,68356.0,68355.0,0.38298041]
[1718077618544,0.59631993,68356.0,68355.0,0.38268741]
[1718077620380,0.59631993,68356.0,68355.0,0.36268741]
[1718077620785,0.59631993,68356.0,68355.0,0.38268741]
[1718077625362,0.14431993,68356.0,68355.0,0.38268741]
[1718077632973,0.14517993,68356.0,68355.0,0.38268741]
[1718077634457,0.29407993,68356.0,68355.0,0.38268741]
[1718077636330,0.28907993,68356.0,68355.0,0.38268741]
[1718077639788,0.28907993,68356.0,68355.0,0.36268741]
[1718077644247,0.28907993,68356.0,68355.0,0.38268741]
[1718077645320,0.28907993,68356.0,68355.0,0.36268741]
[1718077649191,0.28907993,68356.0,68355.0,0.38268741]
[1718077650235,0.28907993,68356.0,68355.0,0.36268741]
[1718077651035,0.28907993,68356.0,68355.0,0.38268741]
[1718077651654,0.28907993,68356.0,68355.0,0.36268741]
[1718077654573,0.57467993,68356.0,68355.0,0.008]
[1718077654775,0.81926837,68356.0,68355.0,0.11668541]
[1718077655349,0.86313327,68356.0,68355.0,0.11668541]
[1718077655553,0.81926837,68356.0,68355.0,0.11668541]
[1718077655972,1.16655806,68356.0,68355.0,0.11668541]
[1718077656182,0.86313293,68356.0,68355.0,0.11668541]
[1718077657357,0.86313293,68356.0,68355.0,0.11368541]
[1718077657598,0.81926837,68356.0,68355.0,0.11368541]
[1718077658006,0.81926837,68356.0,68355.0,0.10868541]
[1718077658177,0.81926837,68356.0,68355.0,0.10968541]
[1718077658547,0.81926837,68356.0,68355.0,0.10868541]
[1718077659425,0.82126837,68356.0,68355.0,0.10868541]
[1718077660335,0.8212893,68356.0,68355.0,0.10868541]
[1718077663301,0.82129164,68356.0,68355.0,0.10868541]
[1718077666034,0.75139164,68356.0,68355.0,0.10868541]
[1718077668220,0.82129164,68356.0,68355.0,0.10963141]
[1718077669941,0.53569164,68356.0,68355.0,0.10963141]
[1718077670113,0.38679164,68356.0,68355.0,0.10963141]
[1718077674201,0.38678845,68356.0,68355.0,0.10963141]
[1718077678234,0.23507993,68356.0,68355.0,0.10963141]
[1718077678438,0.38678767,68356.0,68355.0,0.10963141]
[1718077680612,0.38678816,68356.0,68355.0,0.10963141]
[1718077682677,0.31688816,68356.0,68355.0,0.10963141]
[1718077682890,0.38678816,68356.0,68355.0,0.10963141]
[1718077688475,0.23507993,68356.0,68355.0,0.10963141]
[1718077688699,0.38678808,68356.0,68355.0,0.10963141]
[1718077688924,0.38678808,68356.0,68355.0,0.18548548]
[1718077689525,0.31688808,68356.0,68355.0,0.18548548]
[1718077689726,0.38678808,68356.0,68355.0,0.18548548]
[1718077690406,0.38678808,68356.0,68355.0,0.07680007]
[1718077690597,0.38678808,68356.0,68355.0,0.000946]
[1718077690598,1.23649882,68356.0,68355.0,0.000946]
[1718077690948,1.8401153,68356.0,68355.0,0.000946]
[1718077691149,2.45545105,68356.0,68355.0,0.000946]
[1718077691377,2.32401489,68356.0,68355.0,0.000946]
[1718077691605,2.32201489,68356.0,68355.0,0.000946]
[1718077691833,0.966322,68342.0,68341.0,0.000946]
[1718077692037,1.86493783,68342.0,68341.0,0.294046]
[1718077692282,1.86493783,68342.0,68333.0,0.000946]
[1718077692283,0.5,68334.0,68333.0,0.000946]
[1718077692616,1.33120656,68334.0,68333.0,0.000946]
[1718077692828,1.6554276,68334.0,68333.0,0.146646]
[1718077693694,1.39686247,68334.0,68333.0,0.146646]
[1718077694131,1.47686247,68334.0,68333.0,0.000946]
[1718077694317,1.7774134,68334.0,68333.0,0.000946]
[1718077694502,1.86500891,68334.0,68333.0,0.000946]
[1718077694704,1.75545608,68334.0,68333.0,0.146646]
[1718077695117,1.75545608,68334.0,68333.0,0.147646]
[1718077695118,1.87291273,68334.0,68333.0,0.147646]
[1718077695337,1.43488831,68334.0,68333.0,0.147646]
[1718077695546,1.37678831,68334.0,68333.0,0.455546]
[1718077695754,1.36093849,68334.0,68333.0,0.456546]
[1718077695961,1.32321763,68334.0,68333.0,0.456546]
[1718077696394,1.28132189,68334.0,68333.0,0.457546]
[1718077696598,1.26132189,68334.0,68333.0,0.457546]
[1718077697038,1.28132189,68334.0,68333.0,0.457546]
[1718077697245,1.26132189,68334.0,68333.0,0.457546]
[1718077697455,1.28132189,68334.0,68333.0,0.457546]
[1718077697869,1.67572189,68334.0,68333.0,0.002946]
[1718077698130,1.90581726,68334.0,68333.0,0.002946]
[1718077698334,1.97139901,68334.0,68333.0,0.002946]
[1718077698554,1.82992189,68334.0,68333.0,0.002946]
[1718077698733,1.97133562,68334.0,68333.0,0.002946]
[1718077699381,1.94948093,68334.0,68333.0,0.002946]
[1718077699586,1.72181825,68334.0,68333.0,0.002946]
[1718077699796,1.94952038,68334.0,68333.0,0.002946]
[1718077700007,1.97241301,68334.0,68333.0,0.002946]
[1718077700422,1.92875469,68334.0,68333.0,0.002946]
[1718077700616,1.48015469,68334.0,68333.0,0.002946]
[1718077702366,1.49794586,68334.0,68333.0,0.002946]
[1718077705772,1.49794519,68334.0,68333.0,0.002946]
[1718077706379,1.42204515,68334.0,68333.0,0.157246]
[1718077709391,1.30204515,68334.0,68333.0,0.002946]
[1718077709616,1.05615252,68334.0,68333.0,0.445546]
[1718077710266,0.67031993,68334.0,68333.0,0.55423141]
[1718077710504,0.17031993,68334.0,68333.0,0.55423141]
[1718077710768,0.17031993,68334.0,68333.0,0.55323141]
[1718077710769,0.22621993,68334.0,68333.0,0.55323141]
[1718077711210,0.22821993,68334.0,68333.0,0.55323141]
[1718077711845,0.22821993,68334.0,68333.0,0.55423141]
[1718077711846,0.19031993,68334.0,68333.0,0.55423141]
[1718077712048,0.26021993,68334.0,68333.0,0.55423141]
[1718077712254,0.25121993,68334.0,68333.0,0.55323141]
[1718077712470,0.23721993,68334.0,68333.0,0.55223141]
[1718077712694,0.24321993,68334.0,68333.0,0.55323141]
[1718077713406,0.24821993,68334.0,68333.0,0.55323141]
[1718077714907,0.74821993,68334.0,68333.0,0.444546]
[1718077715121,0.94821993,68334.0,68333.0,0.001946]
[1718077715338,1.32224388,68334.0,68333.0,0.001946]
[1718077716224,1.32224388,68334.0,68333.0,0.000946]
[1718077716225,1.31124388,68334.0,68333.0,0.000946]
[1718077716442,1.32324388,68334.0,68333.0,0.001946]
[1718077717617,1.33624388,68334.0,68333.0,0.002946]
[1718077718278,1.32324388,68334.0,68333.0,0.001946]
[1718077718492,1.33724388,68334.0,68333.0,0.002946]
[1718077719137,1.13534388,68334.0,68333.0,0.156246]
[1718077719351,1.30524388,68334.0,68333.0,0.156246]
[1718077719557,1.20524388,68334.0,68333.0,0.156246]
[1718077719761,1.05534388,68334.0,68333.0,0.156246]
[1718077719974,1.12524388,68334.0,68333.0,0.156246]
[1718077720188,1.13924388,68334.0,68333.0,0.156246]
[1718077720399,1.12524388,68334.0,68333.0,0.156246]
[1718077720649,1.13924388,68334.0,68333.0,0.156246]
[1718077721062,1.06934388,68334.0,68333.0,0.26493141]
[1718077721266,1.13924388,68334.0,68333.0,0.26493141]
[1718077721479,1.13924388,68334.0,68333.0,0.156246]
[1718077721698,1.59460279,68334.0,68333.0,0.156246]
[1718077722536,1.594597,68334.0,68333.0,0.156246]
[1718077723794,2.08481117,68334.0,68333.0,0.001946]
[1718077724334,2.09579101,68334.0,68333.0,0.001946]
[1718077724777,2.09580113,68334.0,68333.0,0.001946]
[1718077725195,1.64042805,68334.0,68333.0,0.001946]
[1718077725414,1.57052805,68334.0,68333.0,0.001946]
[1718077725621,1.64042805,68334.0,68333.0,0.001946]
[1718077725854,2.0958168,68334.0,68333.0,0.001946]
[1718077726062,1.8056168,68334.0,68333.0,0.001946]
[1718077726290,2.0956168,68334.0,68333.0,0.001946]
[1718077726507,2.08463696,68334.0,68333.0,0.001946]
[1718077726919,2.09561752,68334.0,68333.0,0.001946]
[1718077727553,2.18693211,68334.0,68333.0,0.001946]
[1718077727759,2.47961211,68334.0,68333.0,0.001946]
[1718077727976,2.30142424,68334.0,68333.0,0.001946]
[1718077728173,2.37732661,68334.0,68333.0,0.001946]
[1718077728392,2.42096226,68334.0,68333.0,0.001946]
[1718077728805,2.22553167,68334.0,68333.0,0.001946]
[1718077729015,2.37733741,68334.0,68333.0,0.001946]
[1718077729431,2.44280417,68334.0,68333.0,0.001946]
[1718077730377,2.37290417,68334.0,68333.0,0.001946]
[1718077730578,2.44280417,68334.0,68333.0,0.001946]
[1718077731275,2.78891841,68334.0,68333.0,0.001946]
[1718077731501,2.88891841,68334.0,68333.0,0.001946]
[1718077731716,2.88891841,68334.0,68309.0,0.009438]
[1718077731717,1.046374,68318.0,68309.0,0.009438]
[1718077731954,1.93210254,68318.0,68309.0,0.009438]
[1718077732085,2.46516378,68318.0,68309.0,0.009438]
[1718077732289,1.95510254,68318.0,68309.0,0.009438]
[1718077732506,2.41049141,68318.0,68309.0,0.009438]
[1718077733207,2.41049141,68318.0,68317.0,0.154638]
[1718077733208,1.39230254,68318.0,68317.0,0.154638]
[1718077733460,1.39230254,68318.0,68317.0,0.456538]
[1718077733461,1.39130254,68318.0,68317.0,0.456538]
[1718077733630,1.43501568,68318.0,68317.0,0.456538]
[1718077733830,1.50530254,68318.0,68317.0,0.456538]
[1718077734098,1.40530254,68318.0,68317.0,0.456538]
[1718077734710,1.51930254,68318.0,68317.0,0.456538]
[1718077734919,1.62440254,68318.0,68317.0,0.456538]
[1718077735126,1.52440254,68318.0,68317.0,0.456538]
[1718077735326,1.49640964,68318.0,68317.0,0.56522341]
[1718077735545,1.51040964,68318.0,68317.0,0.456538]
[1718077735933,1.49640964,68318.0,68317.0,0.456538]
[1718077736376,1.33540909,68318.0,68317.0,0.456538]
[1718077736567,1.49640909,68318.0,68317.0,0.456538]
[1718077737381,1.57594318,68318.0,68317.0,0.456538]
[1718077737585,1.58994318,68318.0,68317.0,0.456538]
[1718077737792,1.57594318,68318.0,68317.0,0.456538]
[1718077738204,1.58994318,68318.0,68317.0,0.456538]
[1718077738631,1.33494318,68318.0,68317.0,0.56522341]
[1718077738842,1.50994318,68318.0,68317.0,0.56522341]
[1718077739251,1.13494318,68318.0,68317.0,0.56522341]
[1718077739456,1.11320787,68318.0,68317.0,0.56522341]
[1718077739877,0.99349967,68318.0,68317.0,0.56522341]
[1718077740300,0.82412567,68318.0,68317.0,0.56522341]
[1718077740512,0.32412567,68318.0,68317.0,0.58522341]
[1718077740727,0.17231993,68318.0,68317.0,0.58522341]
[1718077741177,0.028,68318.0,68317.0,0.68522341]
[1718077741389,0.014,68318.0,68317.0,0.68522341]
[1718077741601,0.014,68318.0,68317.0,0.83159941]
[1718077741848,0.04984346,68331.0,68330.0,0.39838541]
[1718077742061,0.19416339,68331.0,68330.0,0.39838541]
[1718077742295,0.14431993,68331.0,68330.0,0.37838541]
[1718077742512,0.14431993,68331.0,68330.0,0.39838541]
[1718077743427,0.14431993,68331.0,68330.0,0.37838541]
[1718077744698,0.14431993,68331.0,68330.0,0.39838541]
[1718077745163,0.14431993,68331.0,68330.0,0.37838541]
[1718077745812,0.14431993,68331.0,68330.0,0.39838541]
[1718077746439,0.14431993,68331.0,68330.0,0.37838541]
[1718077747721,0.14631993,68331.0,68330.0,0.38138541]
[1718077748147,0.14431993,68331.0,68330.0,0.38138541]
[1718077748576,0.14831993,68331.0,68330.0,0.38138541]
[1718077748996,0.14831993,68331.0,68330.0,0.37838541]
[1718077749571,0.14931993,68331.0,68330.0,0.37838541]
[1718077749790,0.14831993,68331.0,68330.0,0.37838541]
[1718077750169,0.14431993,68331.0,68330.0,0.37938541]
[1718077750366,0.14431993,68331.0,68330.0,0.39938541]
[1718077750789,0.14431993,68331.0,68330.0,0.37938541]
[1718077751202,0.14631993,68331.0,68330.0,0.37938541]
[1718077751621,0.14431993,68331.0,68330.0,0.39938541]
[1718077751826,0.16931993,68331.0,68330.0,0.39938541]
[1718077752036,0.17231993,68331.0,68330.0,0.39938541]
[1718077752210,0.17231993,68331.0,68330.0,0.37938541]
[1718077755453,0.17231993,68331.0,68330.0,0.39938541]
[1718077756211,0.17231993,68331.0,68330.0,0.37938541]
[1718077757555,0.17231993,68331.0,68330.0,0.39938541]
[1718077758397,0.17231993,68331.0,68330.0,0.37938541]
[1718077759790,0.17231993,68331.0,68330.0,0.39938541]
[1718077761190,0.17231993,68331.0,68330.0,0.54573341]
[1718077763044,0.17231993,68331.0,68330.0,0.52573341]
[1718077763792,0.17231993,68331.0,68330.0,0.10968541]
[1718077764368,0.53451993,68331.0,68330.0,0.10968541]
[1718077764580,0.55751993,68331.0,68330.0,0.10968541]
[1718077764972,0.70781993,68331.0,68330.0,0.10968541]
[1718077765342,0.70781993,68331.0,68330.0,0.001]
[1718077765551,0.70781993,68331.0,68330.0,0.10968541]
[1718077765754,0.63791993,68331.0,68330.0,0.10968541]
[1718077765998,0.70781993,68331.0,68330.0,0.10968541]
[1718077766205,1.01138651,68331.0,68330.0,0.10968541]
[1718077766813,0.94148651,68331.0,68330.0,0.10868541]
[1718077767333,0.93848651,68331.0,68330.0,0.10868541]
[1718077767557,1.02537777,68331.0,68330.0,0.10868541]
[1718077768076,1.01937777,68331.0,68330.0,0.10868541]
[1718077768281,0.87707777,68331.0,68330.0,0.10868541]
[1718077768486,0.58477777,68331.0,68330.0,0.10868541]
[1718077768685,0.50888651,68331.0,68330.0,0.10868541]
[1718077768894,0.20531993,68331.0,68330.0,0.10868541]
[1718077769311,0.50886944,68331.0,68330.0,0.10868541]
[1718077769508,0.58475643,68331.0,68330.0,0.10868541]
[1718077771391,0.56175643,68331.0,68330.0,0.10868541]
[1718077771610,0.56175643,68331.0,68330.0,0.54838541]
[1718077771839,0.48586944,68331.0,68330.0,0.54838541]
[1718077772052,0.18231993,68331.0,68330.0,0.56838541]
[1718077774016,0.18231993,68331.0,68330.0,0.54838541]
[1718077774690,0.18231993,68331.0,68330.0,0.56838541]
[1718077778957,0.18231993,68331.0,68330.0,0.54838541]
[1718077779159,0.18231993,68331.0,68330.0,0.56838541]